[Event "Late-Titled-Tuesday-Blitz-March-19-2024"]
[Site "Chess.com"]
[Date "2024.03.19"]
[Round "9"]
[White "M1711"]
[Black "Szparu"]
[Result "0-1"]
[WhiteElo "2662"]
[BlackElo "2803"]
[TimeControl "180+1"]
[EndTime "15:43:42 PDT"]
[Termination "Szparu won on time"]

1. e4 {[%clk 0:03:00.9]} 1... c5 {[%clk 0:02:57.9]} 2. Nf3 {[%clk 0:03:00.8]}
2... a6 {[%clk 0:02:57.1]} 3. c3 {[%clk 0:02:59.6]} 3... e6 {[%clk 0:02:57.1]}
4. d4 {[%clk 0:02:59.8]} 4... d5 {[%clk 0:02:57.4]} 5. e5 {[%clk 0:02:59.3]}
5... Bd7 {[%clk 0:02:54]} 6. a3 {[%clk 0:02:50.1]} 6... Nc6 {[%clk 0:02:51.3]}
7. b4 {[%clk 0:02:47.9]} 7... c4 {[%clk 0:02:45.1]} 8. Be2 {[%clk 0:02:42.5]}
8... b5 {[%clk 0:02:42.6]} 9. a4 {[%clk 0:02:14.6]} 9... bxa4 {[%clk 0:02:36.6]}
10. Rxa4 {[%clk 0:02:13.8]} 10... a5 {[%clk 0:02:36.7]} 11. bxa5 {[%clk
0:01:36.2]} 11... Nxa5 {[%clk 0:02:37.6]} 12. Ra2 {[%clk 0:01:36.8]} 12... Nb3
{[%clk 0:02:35.3]} 13. Rxa8 {[%clk 0:01:36.7]} 13... Qxa8 {[%clk 0:02:36.2]} 14.
Nbd2 {[%clk 0:01:33.7]} 14... Qa1 {[%clk 0:02:29.8]} 15. O-O {[%clk 0:01:25.6]}
15... Ba4 {[%clk 0:02:23.2]} 16. Nxb3 {[%clk 0:01:22.4]} 16... Bxb3 {[%clk
0:02:11.6]} 17. Qd2 {[%clk 0:01:20.9]} 17... Ne7 {[%clk 0:02:04.4]} 18. Qb2
{[%clk 0:01:13]} 18... Qxb2 {[%clk 0:01:48.5]} 19. Bxb2 {[%clk 0:01:13.3]} 19...
Nc8 {[%clk 0:01:45.4]} 20. Ra1 {[%clk 0:01:11.4]} 20... Be7 {[%clk 0:01:42.5]}
21. Ba3 {[%clk 0:00:49.1]} 21... Bd8 {[%clk 0:01:34]} 22. Bb4 {[%clk 0:00:43.4]}
22... f6 {[%clk 0:01:23.9]} 23. exf6 {[%clk 0:00:35.7]} 23... gxf6 {[%clk
0:01:23.9]} 24. Nd2 {[%clk 0:00:26.9]} 24... Bc2 {[%clk 0:01:24]} 25. Bg4 {[%clk
0:00:24.5]} 25... f5 {[%clk 0:01:19.3]} 26. Be2 {[%clk 0:00:16.2]} 26... Rg8
{[%clk 0:01:17.2]} 27. g3 {[%clk 0:00:15.6]} 27... Rg7 {[%clk 0:01:17.1]} 28.
Ra6 {[%clk 0:00:14.8]} 28... Kd7 {[%clk 0:01:08.1]} 29. Nf3 {[%clk 0:00:14.9]}
29... Bc7 {[%clk 0:01:08]} 30. Ba5 {[%clk 0:00:13.5]} 30... Bb8 {[%clk
0:01:06.5]} 31. Ra8 {[%clk 0:00:10.4]} 31... Bd6 {[%clk 0:01:03.4]} 32. Bb4
{[%clk 0:00:05.6]} 32... Bc7 {[%clk 0:00:54.5]} 33. Ba5 {[%clk 0:00:05.5]} 33...
Nb6 {[%clk 0:00:49.8]} 34. Bxb6 {[%clk 0:00:05.2]} 34... Bxb6 {[%clk 0:00:50]}
35. Ne5+ {[%clk 0:00:05.8]} 35... Kc7 {[%clk 0:00:50.3]} 36. Kf1 {[%clk
0:00:03.4]} 36... f4 {[%clk 0:00:50]} 37. Re8 {[%clk 0:00:02.8]} 37... fxg3
{[%clk 0:00:49.3]} 38. hxg3 {[%clk 0:00:03.7]} 38... Ba5 {[%clk 0:00:44]} 39.
Rxe6 {[%clk 0:00:02.9]} 39... Bxc3 {[%clk 0:00:44.3]} 40. Rc6+ {[%clk
0:00:02.5]} 40... Kb8 {[%clk 0:00:44.2]} 41. Bxc4 {[%clk 0:00:02.9]} 41... Bxd4
{[%clk 0:00:43]} 42. Bxd5 {[%clk 0:00:01.8]} 42... Ba4 {[%clk 0:00:43.5]} 43.
Ra6 {[%clk 0:00:01.7]} 43... Bb5+ {[%clk 0:00:43.6]} 44. Bc4 {[%clk 0:00:02.1]}
44... Bxa6 {[%clk 0:00:43.8]} 45. Nc6+ {[%clk 0:00:02.1]} 45... Kc7 {[%clk
0:00:43.4]} 46. Nxd4 {[%clk 0:00:02.1]} 46... Bxc4+ {[%clk 0:00:43.6]} 47. Kg2
{[%clk 0:00:02.6]} 47... Bd5+ {[%clk 0:00:43.6]} 48. f3 {[%clk 0:00:02.8]} 48...
Rf7 {[%clk 0:00:43.3]} 49. g4 {[%clk 0:00:02.7]} 49... Rf4 {[%clk 0:00:42.3]}
50. Ne2 {[%clk 0:00:01.1]} 50... Bxf3+ {[%clk 0:00:41.6]} 51. Kg3 {[%clk
0:00:01.6]} 51... Rf8 {[%clk 0:00:40.6]} 52. Nf4 {[%clk 0:00:01.9]} 52... Kd6
{[%clk 0:00:34.9]} 53. Kxf3 {[%clk 0:00:01.6]} 53... Ke5 {[%clk 0:00:35.5]} 54.
Kg3 {[%clk 0:00:01.8]} 54... Rxf4 {[%clk 0:00:35.6]} 55. Kh4 {[%clk 0:00:02.3]}
55... Kf6 {[%clk 0:00:34]} 0-1

[Event "Late-Titled-Tuesday-Blitz-March-19-2024"]
[Site "Chess.com"]
[Date "2024.03.19"]
[Round "9"]
[White "Crazy_girl99"]
[Black "NoSpaghettiForYou"]
[Result "0-1"]
[WhiteElo "2568"]
[BlackElo "2468"]
[TimeControl "180+1"]
[EndTime "15:43:45 PDT"]
[Termination "NoSpaghettiForYou won by resignation"]

1. Nf3 {[%clk 0:02:48.8]} 1... Nf6 {[%clk 0:02:58.7]} 2. g3 {[%clk 0:02:48.6]}
2... d5 {[%clk 0:02:58.8]} 3. Bg2 {[%clk 0:02:48.4]} 3... e6 {[%clk 0:02:59.4]}
4. O-O {[%clk 0:02:48.8]} 4... Be7 {[%clk 0:02:59.8]} 5. d3 {[%clk 0:02:49.4]}
5... O-O {[%clk 0:03:00.1]} 6. Nbd2 {[%clk 0:02:50.1]} 6... a5 {[%clk
0:03:00.3]} 7. e4 {[%clk 0:02:50.9]} 7... a4 {[%clk 0:02:59.4]} 8. e5 {[%clk
0:02:50.6]} 8... Nfd7 {[%clk 0:02:59.3]} 9. d4 {[%clk 0:02:50.9]} 9... a3 {[%clk
0:02:58.7]} 10. b3 {[%clk 0:02:51.4]} 10... Bb4 {[%clk 0:02:57]} 11. Nb1 {[%clk
0:02:49.6]} 11... Nc6 {[%clk 0:02:40.6]} 12. c3 {[%clk 0:02:49.8]} 12... Be7
{[%clk 0:02:40.3]} 13. b4 {[%clk 0:02:49.4]} 13... f6 {[%clk 0:02:34.8]} 14.
exf6 {[%clk 0:02:47.2]} 14... Nxf6 {[%clk 0:02:34.8]} 15. Nxa3 {[%clk
0:02:45.2]} 15... Ne4 {[%clk 0:02:32.9]} 16. Qd3 {[%clk 0:02:42.3]} 16... b6
{[%clk 0:02:30.8]} 17. Nc2 {[%clk 0:02:37.4]} 17... b5 {[%clk 0:02:22.4]} 18.
Bf4 {[%clk 0:02:33.8]} 18... Bf6 {[%clk 0:01:57.8]} 19. Qxb5 {[%clk 0:02:10.8]}
19... Ne7 {[%clk 0:00:27.1]} 20. Qd3 {[%clk 0:02:07]} 20... Qe8 {[%clk
0:00:21.8]} 21. c4 {[%clk 0:01:56.8]} 21... c6 {[%clk 0:00:17]} 22. a4 {[%clk
0:01:54.3]} 22... Ng6 {[%clk 0:00:09]} 23. Be5 {[%clk 0:01:47.5]} 23... Bxe5
{[%clk 0:00:08.1]} 24. Nxe5 {[%clk 0:01:47.8]} 24... Nxe5 {[%clk 0:00:07.7]} 25.
dxe5 {[%clk 0:01:48.4]} 25... Ba6 {[%clk 0:00:06.6]} 26. b5 {[%clk 0:01:48.4]}
26... cxb5 {[%clk 0:00:07]} 27. axb5 {[%clk 0:01:48.9]} 27... Bb7 {[%clk
0:00:07.7]} 28. Ne3 {[%clk 0:01:37.4]} 28... dxc4 {[%clk 0:00:07]} 29. Qxc4
{[%clk 0:01:35]} 29... Nd2 {[%clk 0:00:06.8]} 30. Rxa8 {[%clk 0:01:25.4]} 30...
Bxa8 {[%clk 0:00:07.5]} 31. Qa2 {[%clk 0:01:11.9]} 31... Nxf1 {[%clk 0:00:07.8]}
32. Bxf1 {[%clk 0:01:10.6]} 32... Qf7 {[%clk 0:00:04]} 33. Bc4 {[%clk
0:01:10.3]} 33... Re8 {[%clk 0:00:04]} 34. Be2 {[%clk 0:01:00.8]} 34... Qb7
{[%clk 0:00:03.9]} 35. f3 {[%clk 0:00:58.1]} 35... Qb6 {[%clk 0:00:04.6]} 36.
Qb3 {[%clk 0:00:51.4]} 36... Qc5 {[%clk 0:00:04.9]} 37. Kg2 {[%clk 0:00:49.2]}
37... Qxe5 {[%clk 0:00:04.7]} 38. b6 {[%clk 0:00:44.5]} 38... Bd5 {[%clk
0:00:05]} 39. Qb5 {[%clk 0:00:39.6]} 39... Rb8 {[%clk 0:00:05.1]} 40. Ng4 {[%clk
0:00:32.9]} 40... Qd6 {[%clk 0:00:04.1]} 41. b7 {[%clk 0:00:27.4]} 41... Bxb7
{[%clk 0:00:04.2]} 42. Qg5 {[%clk 0:00:24.2]} 42... Qf8 {[%clk 0:00:03]} 43. Ne5
{[%clk 0:00:17.6]} 43... Kh8 {[%clk 0:00:03.3]} 44. Nd7 {[%clk 0:00:17.7]} 44...
Qd8 {[%clk 0:00:03.1]} 45. Qb5 {[%clk 0:00:15.3]} 45... Bxf3+ {[%clk 0:00:02.7]}
46. Kxf3 {[%clk 0:00:14.7]} 46... Rxb5 {[%clk 0:00:03.6]} 47. Bxb5 {[%clk
0:00:15]} 47... Qa8+ {[%clk 0:00:04]} 48. Kf2 {[%clk 0:00:13.3]} 48... Qd5
{[%clk 0:00:04.1]} 49. Ba4 {[%clk 0:00:11.3]} 49... Qd4+ {[%clk 0:00:04.6]} 0-1

[Event "Late-Titled-Tuesday-Blitz-March-19-2024"]
[Site "Chess.com"]
[Date "2024.03.19"]
[Round "9"]
[White "FredddieCroderg"]
[Black "AlexTruskavetsky"]
[Result "0-1"]
[WhiteElo "2318"]
[BlackElo "2664"]
[TimeControl "180+1"]
[EndTime "15:43:48 PDT"]
[Termination "AlexTruskavetsky won on time"]

1. e4 {[%clk 0:03:00.9]} 1... c5 {[%clk 0:02:59.7]} 2. Bc4 {[%clk 0:03:00.5]}
2... Nc6 {[%clk 0:02:59.6]} 3. d3 {[%clk 0:02:59.8]} 3... e6 {[%clk 0:02:59.6]}
4. Qf3 {[%clk 0:02:59.3]} 4... Nf6 {[%clk 0:02:58.7]} 5. Nc3 {[%clk 0:02:58.4]}
5... Be7 {[%clk 0:02:58.6]} 6. Nge2 {[%clk 0:02:53.9]} 6... O-O {[%clk
0:02:57.9]} 7. Qg3 {[%clk 0:02:53.8]} 7... d5 {[%clk 0:02:56.4]} 8. Bb3 {[%clk
0:02:52.5]} 8... Kh8 {[%clk 0:02:54.6]} 9. O-O {[%clk 0:02:50.9]} 9... Rb8
{[%clk 0:02:54.5]} 10. exd5 {[%clk 0:02:39.2]} 10... exd5 {[%clk 0:02:52.7]} 11.
Bg5 {[%clk 0:02:35.5]} 11... Be6 {[%clk 0:02:50.1]} 12. Nf4 {[%clk 0:02:34.4]}
12... h6 {[%clk 0:02:40.2]} 13. Bxf6 {[%clk 0:02:32.6]} 13... Bxf6 {[%clk
0:02:40]} 14. Nfxd5 {[%clk 0:02:29.3]} 14... Bxd5 {[%clk 0:02:39.5]} 15. Nxd5
{[%clk 0:02:18.9]} 15... Nd4 {[%clk 0:02:28.7]} 16. Nc3 {[%clk 0:01:59.5]} 16...
b5 {[%clk 0:02:28.4]} 17. Rae1 {[%clk 0:01:50.2]} 17... c4 {[%clk 0:02:27.8]}
18. dxc4 {[%clk 0:01:49.2]} 18... bxc4 {[%clk 0:02:28.7]} 19. Bxc4 {[%clk
0:01:47.2]} 19... Rxb2 {[%clk 0:02:27.1]} 20. Ne4 {[%clk 0:01:39.4]} 20... Rxc2
{[%clk 0:02:24.3]} 21. Nxf6 {[%clk 0:01:38.6]} 21... Qxf6 {[%clk 0:02:25.2]} 22.
Bd3 {[%clk 0:01:30.2]} 22... Rxa2 {[%clk 0:02:23.2]} 23. Qg4 {[%clk 0:01:20.8]}
23... Ra3 {[%clk 0:02:19.1]} 24. Qe4 {[%clk 0:01:20]} 24... g6 {[%clk
0:02:19.2]} 25. Re3 {[%clk 0:01:13.1]} 25... Ne6 {[%clk 0:02:16.1]} 26. Bc4
{[%clk 0:01:00]} 26... Ng5 {[%clk 0:02:13.8]} 27. Qb7 {[%clk 0:00:41]} 27...
Rxe3 {[%clk 0:02:01.5]} 28. fxe3 {[%clk 0:00:41]} 28... Qe5 {[%clk 0:02:01]} 29.
Qxa7 {[%clk 0:00:38.1]} 29... f5 {[%clk 0:01:01.7]} 30. Qd4 {[%clk 0:00:33.6]}
30... Re8 {[%clk 0:00:58.2]} 31. h4 {[%clk 0:00:31]} 31... Ne4 {[%clk
0:00:57.6]} 32. Bf7 {[%clk 0:00:27.7]} 32... Qxd4 {[%clk 0:00:47.6]} 33. exd4
{[%clk 0:00:27.4]} 33... Rd8 {[%clk 0:00:48.3]} 34. Bxg6 {[%clk 0:00:26.9]}
34... Rxd4 {[%clk 0:00:43.3]} 35. Rxf5 {[%clk 0:00:27]} 35... Ng3 {[%clk
0:00:42.7]} 36. Rf7 {[%clk 0:00:22.6]} 36... Rxh4 {[%clk 0:00:41.3]} 37. Kf2
{[%clk 0:00:18.9]} 37... Nh1+ {[%clk 0:00:40.8]} 38. Kf3 {[%clk 0:00:17.9]}
38... Kg8 {[%clk 0:00:38.4]} 39. Ra7 {[%clk 0:00:15.8]} 39... Rb4 {[%clk
0:00:33.9]} 40. Ra1 {[%clk 0:00:14.6]} 40... Rb3+ {[%clk 0:00:33.9]} 41. Kg4
{[%clk 0:00:10.8]} 41... Nf2+ {[%clk 0:00:33.4]} 42. Kh5 {[%clk 0:00:09.5]}
42... Rb5+ {[%clk 0:00:31.8]} 43. Kh4 {[%clk 0:00:06.4]} 43... Rg5 {[%clk
0:00:31.8]} 44. Bh5 {[%clk 0:00:05.7]} 44... Rxg2 {[%clk 0:00:30.9]} 45. Ra2
{[%clk 0:00:03.6]} 45... Rh2+ {[%clk 0:00:17.5]} 46. Kg3 {[%clk 0:00:03.7]}
46... Rxh5 {[%clk 0:00:17.7]} 47. Rxf2 {[%clk 0:00:01]} 47... Kg7 {[%clk
0:00:17.9]} 48. Ra2 {[%clk 0:00:01.9]} 48... Rg5+ {[%clk 0:00:18]} 49. Kh3
{[%clk 0:00:01.1]} 49... Rc5 {[%clk 0:00:18.9]} 0-1

[Event "Late-Titled-Tuesday-Blitz-March-19-2024"]
[Site "Chess.com"]
[Date "2024.03.19"]
[Round "9"]
[White "diamonds13"]
[Black "Quattroporte300"]
[Result "1-0"]
[WhiteElo "2375"]
[BlackElo "2479"]
[TimeControl "180+1"]
[EndTime "15:43:48 PDT"]
[Termination "diamonds13 won by resignation"]

1. d4 {[%clk 0:02:55.2]} 1... d5 {[%clk 0:03:00.1]} 2. c4 {[%clk 0:02:52.9]}
2... dxc4 {[%clk 0:03:00.3]} 3. e3 {[%clk 0:02:52.5]} 3... Nf6 {[%clk
0:03:00.8]} 4. Bxc4 {[%clk 0:02:52.4]} 4... e6 {[%clk 0:03:01.3]} 5. Nf3 {[%clk
0:02:52.7]} 5... c5 {[%clk 0:03:01.8]} 6. O-O {[%clk 0:02:51.8]} 6... a6 {[%clk
0:03:02.3]} 7. Qe2 {[%clk 0:02:51.4]} 7... Nc6 {[%clk 0:03:02.9]} 8. a4 {[%clk
0:02:50.4]} 8... cxd4 {[%clk 0:03:02.3]} 9. Rd1 {[%clk 0:02:50.5]} 9... Be7
{[%clk 0:02:53]} 10. exd4 {[%clk 0:02:50]} 10... O-O {[%clk 0:02:51.3]} 11. Nc3
{[%clk 0:02:50.2]} 11... Nb4 {[%clk 0:02:45.2]} 12. Bg5 {[%clk 0:02:49]} 12...
h6 {[%clk 0:02:42.9]} 13. Bh4 {[%clk 0:02:48.2]} 13... Nbd5 {[%clk 0:02:42.5]}
14. Bg3 {[%clk 0:02:47.1]} 14... Nh5 {[%clk 0:02:32.4]} 15. Nxd5 {[%clk
0:02:44.6]} 15... exd5 {[%clk 0:02:30.8]} 16. Bxd5 {[%clk 0:02:41.4]} 16... Nxg3
{[%clk 0:02:30]} 17. hxg3 {[%clk 0:02:39.6]} 17... Bf6 {[%clk 0:02:06.3]} 18.
Qc4 {[%clk 0:02:20.5]} 18... Bg4 {[%clk 0:01:49.2]} 19. Rd3 {[%clk 0:02:14.6]}
19... Rc8 {[%clk 0:01:43]} 20. Qb3 {[%clk 0:02:12.6]} 20... Bf5 {[%clk
0:01:37.2]} 21. Rd2 {[%clk 0:02:04.3]} 21... Qd6 {[%clk 0:00:50.9]} 22. Re1
{[%clk 0:01:58.5]} 22... Rc7 {[%clk 0:00:48]} 23. Ne5 {[%clk 0:01:53.2]} 23...
g6 {[%clk 0:00:34.3]} 24. g4 {[%clk 0:01:51.3]} 24... Bg5 {[%clk 0:00:27.3]} 25.
gxf5 {[%clk 0:01:45]} 25... Bxd2 {[%clk 0:00:26.4]} 26. Rd1 {[%clk 0:01:43.2]}
26... Rc1 {[%clk 0:00:17.8]} 27. Rxc1 {[%clk 0:01:13.5]} 27... Bxc1 {[%clk
0:00:18.7]} 28. fxg6 {[%clk 0:01:04.3]} 28... Kg7 {[%clk 0:00:18.8]} 29. Qxb7
{[%clk 0:00:58.2]} 29... Bf4 {[%clk 0:00:13.9]} 30. Nxf7 {[%clk 0:00:56.4]}
30... Qc7 {[%clk 0:00:14.5]} 31. g3 {[%clk 0:00:36.8]} 31... Qxb7 {[%clk
0:00:13.5]} 32. Bxb7 {[%clk 0:00:36.7]} 32... Kxg6 {[%clk 0:00:12.1]} 33. Ne5+
{[%clk 0:00:33.4]} 33... Bxe5 {[%clk 0:00:12.1]} 34. dxe5 {[%clk 0:00:33.4]}
34... a5 {[%clk 0:00:12]} 35. Be4+ {[%clk 0:00:28.5]} 35... Kf7 {[%clk
0:00:11.5]} 36. Bd5+ {[%clk 0:00:26.1]} 36... Ke7 {[%clk 0:00:11.6]} 37. b3
{[%clk 0:00:25.1]} 37... h5 {[%clk 0:00:07.2]} 38. Kg2 {[%clk 0:00:23]} 38...
Rd8 {[%clk 0:00:06.6]} 39. Bc4 {[%clk 0:00:22.4]} 39... Rd2 {[%clk 0:00:05.2]}
40. Kf3 {[%clk 0:00:19.9]} 40... Rb2 {[%clk 0:00:05]} 41. Ke3 {[%clk 0:00:19.1]}
41... Ra2 {[%clk 0:00:04.8]} 42. f4 {[%clk 0:00:18.6]} 42... Rg2 {[%clk
0:00:04.6]} 43. Kf3 {[%clk 0:00:18.7]} 43... Rc2 {[%clk 0:00:05.3]} 44. f5
{[%clk 0:00:18.4]} 44... Rc3+ {[%clk 0:00:05]} 45. Kf4 {[%clk 0:00:18.9]} 45...
Rc1 {[%clk 0:00:04.6]} 46. f6+ {[%clk 0:00:19.1]} 46... Kf8 {[%clk 0:00:04.6]}
47. e6 {[%clk 0:00:19.3]} 47... Rf1+ {[%clk 0:00:03.4]} 48. Kg5 {[%clk
0:00:18.8]} 48... Re1 {[%clk 0:00:03]} 49. e7+ {[%clk 0:00:18.5]} 1-0

[Event "Late-Titled-Tuesday-Blitz-March-19-2024"]
[Site "Chess.com"]
[Date "2024.03.19"]
[Round "9"]
[White "Bala-Afiada"]
[Black "Szachulec75"]
[Result "1-0"]
[WhiteElo "1882"]
[BlackElo "2171"]
[TimeControl "180+1"]
[EndTime "15:43:49 PDT"]
[Termination "Bala-Afiada won by resignation"]

1. d4 {[%clk 0:02:59.6]} 1... Nf6 {[%clk 0:02:59]} 2. c4 {[%clk 0:02:59.4]} 2...
d6 {[%clk 0:02:58.3]} 3. Nc3 {[%clk 0:02:59.1]} 3... g6 {[%clk 0:02:58.4]} 4. e4
{[%clk 0:02:59.1]} 4... Bg7 {[%clk 0:02:58.7]} 5. Nf3 {[%clk 0:02:59.7]} 5...
O-O {[%clk 0:02:59]} 6. Be2 {[%clk 0:03:00.3]} 6... Bg4 {[%clk 0:02:59.3]} 7.
Ng1 {[%clk 0:02:59.5]} 7... Bxe2 {[%clk 0:02:57.6]} 8. Ngxe2 {[%clk 0:03:00.4]}
8... e5 {[%clk 0:02:57.5]} 9. dxe5 {[%clk 0:02:56]} 9... dxe5 {[%clk 0:02:56.9]}
10. Qxd8 {[%clk 0:02:55.8]} 10... Rxd8 {[%clk 0:02:56]} 11. Bg5 {[%clk
0:02:55.3]} 11... c6 {[%clk 0:02:55.4]} 12. h3 {[%clk 0:02:46.6]} 12... a5
{[%clk 0:02:53.8]} 13. O-O {[%clk 0:02:37.5]} 13... Na6 {[%clk 0:02:52.8]} 14.
a3 {[%clk 0:02:36.8]} 14... h6 {[%clk 0:02:50.4]} 15. Be3 {[%clk 0:02:36.1]}
15... Rd3 {[%clk 0:02:33]} 16. Rad1 {[%clk 0:02:24.6]} 16... Rad8 {[%clk
0:02:31.3]} 17. Rxd3 {[%clk 0:02:24]} 17... Rxd3 {[%clk 0:02:30.5]} 18. Nc1
{[%clk 0:02:15.2]} 18... Rd7 {[%clk 0:02:21.5]} 19. f3 {[%clk 0:02:05.7]} 19...
Bf8 {[%clk 0:02:16.6]} 20. Rd1 {[%clk 0:02:04.7]} 20... Rxd1+ {[%clk 0:02:10.4]}
21. Nxd1 {[%clk 0:02:05.6]} 21... Bc5 {[%clk 0:02:08.9]} 22. Nd3 {[%clk
0:01:54]} 22... Bxe3+ {[%clk 0:02:02.1]} 23. Nxe3 {[%clk 0:01:54.9]} 23... Nd7
{[%clk 0:02:02.5]} 24. Ng4 {[%clk 0:01:46.3]} 24... f6 {[%clk 0:01:21.4]} 25.
Nxh6+ {[%clk 0:01:41.1]} 25... Kf8 {[%clk 0:01:22.3]} 26. Ng4 {[%clk 0:01:35.3]}
26... Ke7 {[%clk 0:01:21.9]} 27. Kf2 {[%clk 0:01:34.5]} 27... Nb6 {[%clk
0:01:21.4]} 28. Ne3 {[%clk 0:01:28.2]} 28... a4 {[%clk 0:01:19.5]} 29. g4 {[%clk
0:01:18.6]} 29... Kd6 {[%clk 0:01:18.6]} 30. h4 {[%clk 0:01:17.7]} 30... Nd7
{[%clk 0:01:16.1]} 31. h5 {[%clk 0:01:17.3]} 31... gxh5 {[%clk 0:01:15.8]} 32.
gxh5 {[%clk 0:01:17.3]} 32... Ke7 {[%clk 0:01:16.7]} 33. Nf5+ {[%clk 0:01:17.1]}
33... Kf7 {[%clk 0:01:17.6]} 34. Nd6+ {[%clk 0:01:16]} 34... Kg7 {[%clk
0:01:16.8]} 35. Nxb7 {[%clk 0:01:16.3]} 35... Kh6 {[%clk 0:01:13.8]} 36. Na5
{[%clk 0:01:00.2]} 36... c5 {[%clk 0:01:12.3]} 37. Nb7 {[%clk 0:00:49.4]} 37...
Kxh5 {[%clk 0:01:11.6]} 38. Ke3 {[%clk 0:00:48.3]} 38... Kg5 {[%clk 0:01:10.9]}
39. f4+ {[%clk 0:00:31]} 39... Kg4 {[%clk 0:01:01]} 40. fxe5 {[%clk 0:00:28.5]}
40... fxe5 {[%clk 0:01:00.3]} 41. Nd6 {[%clk 0:00:22.7]} 41... Nb6 {[%clk
0:00:56.9]} 42. Nxe5+ {[%clk 0:00:15.2]} 42... Kg5 {[%clk 0:00:54.4]} 43. Nd3
{[%clk 0:00:11.4]} 43... Kf6 {[%clk 0:00:53.7]} 44. e5+ {[%clk 0:00:11.3]} 44...
Ke6 {[%clk 0:00:53.7]} 45. Ke4 {[%clk 0:00:10.9]} 45... Nd7 {[%clk 0:00:47]} 46.
Nf4+ {[%clk 0:00:07.1]} 46... Ke7 {[%clk 0:00:46.9]} 47. Nd5+ {[%clk 0:00:07.4]}
47... Ke6 {[%clk 0:00:46.3]} 48. Nb5 {[%clk 0:00:04.7]} 48... Nb6 {[%clk
0:00:41.5]} 49. Nxb6 {[%clk 0:00:04.8]} 49... Ke7 {[%clk 0:00:39.6]} 50. Nd5+
{[%clk 0:00:04.4]} 50... Ke6 {[%clk 0:00:39.7]} 51. Nbc3 {[%clk 0:00:04.4]}
51... Kd7 {[%clk 0:00:39.8]} 52. Nxa4 {[%clk 0:00:04.3]} 52... Kc6 {[%clk
0:00:39.4]} 53. b4 {[%clk 0:00:04.1]} 53... cxb4 {[%clk 0:00:39.1]} 54. axb4
{[%clk 0:00:05]} 54... Kd7 {[%clk 0:00:39.3]} 55. b5 {[%clk 0:00:05.1]} 55...
Nb8 {[%clk 0:00:38.4]} 56. Nc5+ {[%clk 0:00:05.3]} 56... Ke8 {[%clk 0:00:37.9]}
57. Nc7+ {[%clk 0:00:05.1]} 1-0

[Event "Late-Titled-Tuesday-Blitz-March-19-2024"]
[Site "Chess.com"]
[Date "2024.03.19"]
[Round "9"]
[White "NovakRatko"]
[Black "Alexei_Gubajdullin"]
[Result "0-1"]
[WhiteElo "2416"]
[BlackElo "2635"]
[TimeControl "180+1"]
[EndTime "15:43:50 PDT"]
[Termination "Alexei_Gubajdullin won on time"]

1. d4 {[%clk 0:02:55.8]} 1... Nf6 {[%clk 0:02:14.7]} 2. c4 {[%clk 0:02:39]} 2...
g6 {[%clk 0:02:13.3]} 3. Nc3 {[%clk 0:02:38.2]} 3... Bg7 {[%clk 0:02:13.6]} 4.
e4 {[%clk 0:02:38]} 4... d6 {[%clk 0:02:14.1]} 5. f3 {[%clk 0:02:38.7]} 5... O-O
{[%clk 0:02:14.2]} 6. Be3 {[%clk 0:02:39.4]} 6... c5 {[%clk 0:02:13.1]} 7. dxc5
{[%clk 0:02:40.3]} 7... dxc5 {[%clk 0:02:13.4]} 8. Qxd8 {[%clk 0:02:40.9]} 8...
Rxd8 {[%clk 0:02:13.1]} 9. Bxc5 {[%clk 0:02:41.8]} 9... Nc6 {[%clk 0:02:13.3]}
10. Nd5 {[%clk 0:02:42.4]} 10... e6 {[%clk 0:01:49.5]} 11. Ne7+ {[%clk
0:02:41.6]} 11... Nxe7 {[%clk 0:01:42.8]} 12. Bxe7 {[%clk 0:02:42.5]} 12... Re8
{[%clk 0:01:42.6]} 13. Ba3 {[%clk 0:02:42.2]} 13... Nd7 {[%clk 0:01:41.8]} 14.
Ne2 {[%clk 0:02:38.4]} 14... b6 {[%clk 0:01:39.6]} 15. O-O-O {[%clk 0:02:26.7]}
15... Nc5 {[%clk 0:01:38.6]} 16. Bxc5 {[%clk 0:02:23.1]} 16... bxc5 {[%clk
0:01:38.4]} 17. Kc2 {[%clk 0:02:20.5]} 17... Bb7 {[%clk 0:01:35.7]} 18. Nc3
{[%clk 0:02:20.5]} 18... f5 {[%clk 0:01:27.5]} 19. Bd3 {[%clk 0:02:14.5]} 19...
Red8 {[%clk 0:01:25.6]} 20. exf5 {[%clk 0:02:10]} 20... gxf5 {[%clk 0:01:25.2]}
21. Rhe1 {[%clk 0:02:08.9]} 21... Kf7 {[%clk 0:01:24.9]} 22. Nb5 {[%clk
0:02:01.2]} 22... Bc8 {[%clk 0:00:55.7]} 23. Be2 {[%clk 0:01:35.4]} 23... Rxd1
{[%clk 0:00:53.6]} 24. Rxd1 {[%clk 0:01:34.2]} 24... Ke7 {[%clk 0:00:53.4]} 25.
f4 {[%clk 0:01:13.4]} 25... a6 {[%clk 0:00:49.4]} 26. Bf3 {[%clk 0:01:06.1]}
26... Rb8 {[%clk 0:00:46.4]} 27. Nc3 {[%clk 0:01:06.4]} 27... Bd7 {[%clk
0:00:43.2]} 28. Re1 {[%clk 0:01:00.3]} 28... Rg8 {[%clk 0:00:34.1]} 29. g3
{[%clk 0:00:59.9]} 29... h5 {[%clk 0:00:32]} 30. Nd5+ {[%clk 0:00:59.3]} 30...
Kd6 {[%clk 0:00:27]} 31. Nb6 {[%clk 0:00:48]} 31... Be8 {[%clk 0:00:24.7]} 32.
b3 {[%clk 0:00:17.1]} 32... h4 {[%clk 0:00:20.2]} 33. Rd1+ {[%clk 0:00:06.4]}
33... Ke7 {[%clk 0:00:14]} 34. Nc8+ {[%clk 0:00:05.2]} 34... Kf6 {[%clk
0:00:14.2]} 35. Nd6 {[%clk 0:00:02.2]} 35... Bg6 {[%clk 0:00:12.7]} 36. Nb7
{[%clk 0:00:02.6]} 36... hxg3 {[%clk 0:00:08.3]} 37. hxg3 {[%clk 0:00:02.7]}
37... Bf8 {[%clk 0:00:08.3]} 38. Rd8 {[%clk 0:00:02.9]} 38... Ke7 {[%clk
0:00:07.9]} 39. Rb8 {[%clk 0:00:02.8]} 39... Bf7 {[%clk 0:00:07.6]} 40. Nxc5
{[%clk 0:00:03]} 40... Rxg3 {[%clk 0:00:07.7]} 41. Bc6 {[%clk 0:00:01.9]} 41...
Rg2+ {[%clk 0:00:05.1]} 42. Kc3 {[%clk 0:00:01.6]} 42... Rg3+ {[%clk 0:00:05.1]}
43. Kd2 {[%clk 0:00:01.8]} 43... Bh6 {[%clk 0:00:04.7]} 0-1